Workbook

Sheet Start
B3: Einfacher Betriebsabrechnungsbogen
B6: Es können bis zu 13 verschiedene Gemeinkostenarten erfasst werden
B9: Direkte Gemeinkosten Zuweisung oder Verteilung über Schlüssel
B12: Berechnung der Herstellkosten und der Selbstkosten des Umsatzes
B15: Anzeige des Betriebsabrechnungsbogens
B18: Graphische Darstellung der Kostenverteilung auf die Kostenstellen

Sheet BAB
B2: Betriebsabrechnungsbogen (BAB)
C4: Zahlen der | E4: Kostenstellen | J4: Differenz
C5: Betriebsergebnis- | E5: I | F5: II | G5: III | H5: IV | I5: Fehler- | J5: Betriebsergebnis:
B6: Gemeinkostenart | C6: rechnung | D6: Verteilungsgrundlagen | E6: Material | F6: Fertigung | G6: Verwaltung | H6: Vertrieb | I6: meldung | J6: Kostenstellen
B7: Aufwendungen für Hilfsstoffe | C7: 795000 | D7: Entnahmescheine | E7: 0 | F7: 710000 | G7: 0 | H7: 85000 | I7: =IF(J7=0,"","Fehler") ->  | J7: =C7-(SUM(E7:H7)) -> 0
B8: Aufwendungen für Betriebsstoffe | C8: 35000 | D8: Entnahmescheine | E8: 0 | F8: 30000 | G8: 3000 | H8: 2000 | I8: =IF(J8=0,"","Fehler") ->  | J8: =C8-(SUM(E8:H8)) -> 0
B9: Fremdinstandhaltung | C9: 4050 | D9: Rechnungen | E9: 550 | F9: 2500 | G9: 500 | H9: 500 | J9: 0
B10: Gehälter | C10: 500000 | D10: Gehaltsliste | E10: 60000 | F10: 100000 | G10: 290000 | H10: 50000 | J10: 0
B11: Soziale Abgaben | C11: 600000 | D11: Gehaltsliste | E11: 10000 | F11: 450000 | G11: 130000 | H11: 10000 | J11: 0
B12: Abschreibungen auf Sachanlagen | C12: 660000 | D12: Wiederbeschaffungswerte | E12: =E27*$C$12/SUM($E$27:$H$27) -> 40006.84932 | F12: =F27*$C$12/SUM($E$27:$H$27) -> 510008.2192 | G12: =G27*$C$12/SUM($E$27:$H$27) -> 69978.08219 | H12: =H27*$C$12/SUM($E$27:$H$27) -> 40006.84932 | J12: 0
B13: Mietaufwendungen | C13: 20000 | D13: Raumgröße in m2 | E13: =E28*$C$13/SUM($E$28:$H$28) -> 2758.62069 | F13: =F28*$C$13/SUM($E$28:$H$28) -> 11034.48276 | G13: =G28*$C$13/SUM($E$28:$H$28) -> 3448.275862 | H13: =H28*$C$13/SUM($E$28:$H$28) -> 2758.62069 | J13: 0
B14: Büromaterial | C14: 50000 | D14: Rechnungen | E14: 0 | F14: 20000 | G14: 30000 | H14: 0 | J14: 0
B15: Kosten für Werbung und Reise | C15: 205000 | D15: Rechnungen | E15: 0 | F15: 30000 | G15: 122000 | H15: 53000 | J15: 0
B16: Versicherungen | C16: 5000 | D16: Anlagewerte | E16: =E29*$C$16/SUM($E$29:$H$29) -> 555.5555556 | F16: =F29*$C$16/SUM($E$29:$H$29) -> 1111.111111 | G16: =G29*$C$16/SUM($E$29:$H$29) -> 2500 | H16: =H29*$C$16/SUM($E$29:$H$29) -> 833.3333333 | J16: 0
B17: Betriebliche Steuern | C17: 171000 | D17: Anlagewerte | E17: =E29*$C$17/SUM($E$29:$H$29) -> 19000 | F17: =F29*$C$17/SUM($E$29:$H$29) -> 38000 | G17: =G29*$C$17/SUM($E$29:$H$29) -> 85500 | H17: =H29*$C$17/SUM($E$29:$H$29) -> 28500 | J17: 0
B18: Zinsaufwand | C18: 1035000 | D18: Vermögenswerte | E18: =E30*$C$18/SUM($E$30:$H$30) -> 149301 | F18: =F30*$C$18/SUM($E$30:$H$30) -> 649998 | G18: =G30*$C$18/SUM($E$30:$H$30) -> 109998 | H18: =H30*$C$18/SUM($E$30:$H$30) -> 125703 | J18: 0
B19: Kalkulatorischer Unternehmerlohn | C19: 300000 | D19: Unternehmerschätzung | E19: =E32*$C$19/SUM($E$32:$H$32) -> 0 | F19: =F32*$C$19/SUM($E$32:$H$32) -> 100000 | G19: =G32*$C$19/SUM($E$32:$H$32) -> 200000 | H19: =H32*$C$19/SUM($E$32:$H$32) -> 0 | J19: 0
B20: Summe der Gemeinkosten | C20: =SUM(C7:C19) -> 4380050 | E20: =SUM(E7:E19) -> 282172.0256 | F20: =SUM(F7:F19) -> 2652651.813 | G20: =SUM(G7:G19) -> 1046924.358 | H20: =SUM(H7:H19) -> 398301.8033 | J20: 0
B21: Zuschlagsgrundlagen | E21: Fertigungsmaterial | F21: Fertigungslöhne | G21: Herstellkosten des Umsatzes
E22: =HK!C5 -> 2940000 | F22: =HK!C8 -> 2400000 | G22: =HK!D14 -> 8274823.839 | H22: =HK!D14 -> 8274823.839
B23: Zuschlagssätze | E23: =E20/E22 -> 0.09597687944 | F23: =F20/F22 -> 1.105271589 | G23: =G20/G22 -> 0.1265192321 | H23: =H20/H22 -> 0.04813417314
E25: Verteilungsschlüssel
E26: Material | F26: Fertigung | G26: Verwaltung | H26: Vertrieb
D27: Wiederbeschaffungswerte | E27: 442500 | F27: 5641000 | G27: 774000 | H27: 442500
D28: Raumgröße in m2 | E28: 400 | F28: 1600 | G28: 500 | H28: 400
D29: Anlagewerteverhältnis | E29: 2 | F29: 4 | G29: 9 | H29: 3
D30: Vermögenswerte | E30: 1658900 | F30: 7222200 | G30: 1222200 | H30: 1396700
D31: Unternehmerleistungs-
D32: verhältnis | E32: 0 | F32: 1 | G32: 2 | H32: 0

Sheet HK
B2: Herstellkosten und Selbstkosten des Umsatzes
B4: Kalkulationsschema
B5: Fertigungsmaterial | C5: 2940000
B6: + Materialgemeinkosten | C6: =BAB!E20 -> 282172.0256
B7: = Materialkosten | D7: =C5+C6 -> 3222172.026
B8: Fertigungslöhne | C8: 2400000
B9: + Fertigungsgemeinkosten | C9: =BAB!F20 -> 2652651.813
B10: = Fertigungskosten | D10: =C8+C9 -> 5052651.813
B11: = Herstellkosten der Erzeugung | D11: =D7+D10 -> 8274823.839
B12: - Mehrbestände an fertigen Erzeugnissen
B13: + Minderbestände an fertigen Erzeugnissen
B14: = Herstellkosten des Umsatzes | D14: =D11-D12+D13 -> 8274823.839
B15: + Verwaltungsgemeinkosten | D15: =BAB!G20 -> 1046924.358
B16: + Vertriebgsgemeinkosten | D16: =BAB!H20 -> 398301.8033
B17: = Selbstkosten des Umsatzes | D17: =D14+D15+D16 -> 9720050

Sheet Diagramm
